lending/lending_fUSD_20250430
["ID","MTS","AMOUNT","RATE_DAILY","PERIOD"]
[359388818,1745971207755,-269.42770857,0.00019331,2]
[359388819,1745971212871,-210.6263,0.00019331,2]
[359388820,1745971221483,-149.6261425,0.00019331,2]
[359388821,1745971280349,226.00323562,0.00019246,2]
[359388822,1745971286554,250.0,0.00017,2]
[359388823,1745971287619,300.0,0.00019,2]
[359388831,1745971387498,3000.0,0.0003,31]
[359388832,1745971420034,3000.0,0.0003,30]
[359388839,1745971726865,-163.91024141,0.00019331,2]
[359388840,1745971726891,-34.72875859,0.00019331,2]
[359388841,1745971732435,-203.76381215,0.00019331,2]
[359388842,1745971732641,-60.25780524,0.00019345,2]
[359388843,1745971736588,-104.52311922,0.00019345,2]
[359388844,1745971736612,-101.22421449,0.00019345,2]
[359388845,1745971739630,-198.77578551,0.00019345,2]
[359388846,1745971739655,-49.74399049,0.00019345,2]
[359388847,1745971743419,-179.0,0.00019345,2]
[359388848,1745971745670,-9.74858026,0.00019345,2]
[359388849,1745971745696,-300.0,0.00019345,2]
[359388850,1745971745890,-286.28651251,0.00019345,2]
[359388851,1745971745918,-1642.68,0.00019346,2]
[359388852,1745971745945,-152.44,0.00019346,2]
[359388853,1745971745970,-250.0,0.00019346,2]
[359388854,1745971745999,-114703.9791527,0.00019346,2]
[359388856,1745971750161,-200.0,0.00019357,2]
[359388858,1745971750205,-50.0,0.00019368,2]
[359388872,1745971755444,-150.0,0.00019368,2]
[359388873,1745971755470,-95.72,0.00019368,2]
[359388874,1745971759953,-154.28,0.00019368,2]
[359388875,1745971797703,299.34,0.0003,30]
[359388879,1745971831701,-152.44,0.00019443,2]
[359388880,1745971831711,-200.0,0.00019449,2]
[359388881,1745971831723,-200.0,0.00019938,2]
[359388882,1745971831732,-178.56659436,0.00019953,2]
[359388883,1745971831742,-207.4,0.00019953,2]
[359388884,1745971831752,-1524.55,0.00020886,2]
[359388885,1745971831761,-350.0,0.00021,2]
[359388886,1745971831771,-1200.0,0.0002128,2]
[359388887,1745971831781,-200.0,0.00021281,2]
[359388888,1745971831791,-250.0,0.00021281,2]
[359388889,1745971831801,-215.0738,0.00021322,2]
[359388890,1745971831810,-200.0,0.00021387,2]
[359388891,1745971831820,-250.0,0.00021387,2]
[359388892,1745971831829,-300.0,0.0002183,2]
[359388893,1745971831839,-150.0,0.00021917,2]
[359388894,1745971831849,-526.28300199,0.00022462,2]
[359388895,1745971831859,-9999.99,0.00022562,2]
[359388896,1745971831868,-150.99,0.00022562,2]
[359388897,1745971831877,-9999.99,0.00022562,2]
[359388898,1745971831887,-999.99,0.00022562,2]
[359388899,1745971831896,-3185.69,0.00022562,2]
[359388900,1745971831906,-150.99,0.00022562,2]
[359388901,1745971831917,-9999.99,0.00022562,2]
[359388902,1745971831927,-1000.0,0.00022663,2]
[359388903,1745971831937,-223.0315306,0.00022691,2]
[359388904,1745971831947,-400.0,0.00023,2]
[359388905,1745971831956,-897.23,0.00023,3]
[359388906,1745971831966,-200.0,0.00023134,2]
[359388907,1745971831976,-1524.55,0.0002315,2]
[359388908,1745971831985,-1680.0,0.00023251,2]
[359388909,1745971831995,-195.94131717,0.00023287,2]
[359388910,1745971832005,-500.0,0.00023389,2]
[359388912,1745971832014,-509.78385307,0.00023389,2]
[359388914,1745971832024,-526.28300198,0.00023395,2]
[359388917,1745971832033,-1668.09,0.0002354,2]
[359388920,1745971832042,-1178.51,0.00023589,2]
[359388922,1745971832052,-420.0,0.00023726,2]
[359388924,1745971832061,-150.0,0.00023749,2]
[359388925,1745971832071,-171.13,0.00023836,2]
[359388926,1745971832080,-292.183,0.00023878,2]
[359388927,1745971832089,-580.0,0.00023878,2]
[359388928,1745971832099,-2067.0,0.00023878,2]
[359388929,1745971832109,-913.0,0.00023878,2]
[359388930,1745971832118,-549.0,0.00023878,2]
[359388931,1745971832128,-6743.0,0.00023882,2]
[359388932,1745971832137,-3998.0,0.00023882,2]
[359388933,1745971832147,-258.529,0.00023882,2]
[359388934,1745971832156,-880.254,0.00023882,2]
[359388935,1745971832166,-500.0,0.00023888,2]
[359388936,1745971832175,-187.03,0.00023974,2]
[359388937,1745971832184,-231.28369723,0.0002406,2]
[359388938,1745971832193,-451.29533622,0.00024113,2]
[359388939,1745971832203,-1244.59106288,0.000243,5]
[359388940,1745971832212,-308.05021664,0.00024328,2]
[359388954,1745971839844,-218.23278534,0.00024328,2]
[359388955,1745971839854,-1404.69757713,0.00024773,2]
[359388956,1745971839865,-169.46963793,0.00024783,8]
[359388957,1745971840022,-950.4,0.00024783,8]
[359388958,1745971840291,-117.2382434,0.00024783,8]
[359388963,1745971840644,-1041.1660869,0.00024783,8]
[359388964,1745971840655,-304.58303177,0.00024783,8]
[359388965,1745971840665,-171.075,0.00024783,8]
[359388966,1745971840674,-178.64,0.00024783,2]
[359388967,1745971840683,-345.70196823,0.0002482,2]
[359388968,1745971840747,-197.60906297,0.0002482,2]
[359388969,1745971840757,-226.0003,0.00024849,2]
[359388970,1745971840766,-316.7963,0.00024849,2]
[359388971,1745971840776,-1000.0,0.0002488,2]
[359388972,1745971840788,-530.228,0.0002488,2]
[359388973,1745971840797,-729.65237588,0.0002488,2]
[359388974,1745971840807,-1404.69757713,0.00024883,2]
[359388975,1745971840992,-5848.2763,0.00024883,2]
[359388976,1745971841002,-4220.5259612,0.00024898,2]
[359388977,1745971841012,-3489.6058627,0.00024915,2]
[359388978,1745971841022,-4710.98967251,0.00024949,2]
[359388979,1745971841033,-1278.40652829,0.00024949,2]
[359388980,1745971841044,-10342.85860827,0.00024949,2]
[359388981,1745971841055,-405.555575,0.00024949,2]
[359389008,1745971843558,-9034.26108379,0.00024949,2]
[359389009,1745971843650,-16877.44626585,0.00024949,2]
[359389010,1745971843661,-743.71812526,0.00024949,2]
[359389011,1745971843738,-500.0,0.00024949,2]
[359389017,1745971845646,-876.95045,0.000249,5]
[359389018,1745971845858,-326.15424404,0.000249,5]
[359389019,1745971845868,-300.0,0.00024948,2]
[359389020,1745971845877,-4082.63432923,0.00024949,2]
[359389091,1745971992979,197.31,0.00027256,120]
[359389092,1745972132929,-160.08,0.00019346,2]
[359389093,1745972146005,250.0,0.00019346,7]
[359389094,1745972367795,200.0,0.00030137,120]
[359389095,1745972546128,400.0,0.0003,30]
[359389096,1745972667191,156.02474124,0.0003,30]
[359389167,1745972981791,-150.81,0.00019346,2]
[359389168,1745972989655,-194.13,0.00019346,2]
[359389172,1745973004866,2000.0,0.0002,4]
[359389190,1745973031799,-400.517526,0.00019577,2]
[359389191,1745973031809,-107.76753314,0.00019627,2]
[359389192,1745973031960,-92.23246686,0.00019627,2]
[359389193,1745973031971,-250.0,0.00019676,2]
[359389194,1745973031983,-166.64307559,0.00019827,2]
[359389195,1745973031993,-2374.9092218,0.0001983,2]
[359389196,1745973032002,-731.22053144,0.0001987,2]
[359389197,1745973032011,-300.0,0.00019899,2]
[359389199,1745973032020,-1200.0,0.00019899,2]
[359389200,1745973032031,-300.0,0.00019899,2]
[359389201,1745973032041,-792.46563806,0.000199,2]
[359389202,1745973032051,-156.63736672,0.000199,2]
[359389203,1745973032060,-207.85847752,0.000199,2]
[359389204,1745973032069,-643.87451502,0.000199,2]
[359389206,1745973032080,-9675.60041438,0.000199,2]
[359389208,1745973032092,-12969.66029734,0.000199,2]
[359389211,1745973032110,-549.0,0.000199,2]
[359389338,1745973037810,-953.85529437,0.000199,2]
[359389339,1745973037821,-1925.70150743,0.000199,2]
[359389340,1745973037881,-11142.68271428,0.000199,2]
[359389341,1745973037891,-3287.5441,0.000199,2]
[359389342,1745973037900,-165.4,0.00019927,2]
[359389343,1745973037910,-207.4,0.00019953,2]
[359389344,1745973037919,-151.0,0.00019953,2]
[359389345,1745973037929,-1000.0,0.00019954,2]
[359389346,1745973037938,-195.82075595,0.00019954,2]
[359389347,1745973037948,-500.0,0.00019973,2]
[359389348,1745973037957,-500.0,0.00019973,2]
[359389349,1745973037966,-3992.0312305,0.00019976,2]
[359389350,1745973037975,-13759.69429604,0.0001999,2]
[359389351,1745973037984,-300.0,0.00019999,2]
[359389352,1745973037994,-500.0,0.00019999,2]
[359389353,1745973038003,-300.0,0.00019999,2]
[359389354,1745973038012,-199.46872262,0.00019999,2]
[359389355,1745973038022,-177.36590547,0.0002,2]
[359389356,1745973038031,-50014.52855126,0.0002,2]
[359389357,1745973038043,-4651832.73984676,0.0002,2]
[359389358,1745973038054,-187122.0,0.0002,2]
[359389359,1745973038081,-326.13337024,0.0002,2]
[359389360,1745973038093,-1875.34148816,0.0002,2]
[359389540,1745973040115,-12964.80346452,0.0002,2]
[359389541,1745973040139,-35237.50512624,0.0002,2]
[359389542,1745973040153,-8852.88286436,0.0002,2]
[359389543,1745973040165,-1348.64355995,0.0002,2]
[359389544,1745973040177,-2185.09244112,0.0002,2]
[359389545,1745973040256,-516.8250225,0.0002,2]
[359389546,1745973040367,-485.31499167,0.0002,2]
[359389572,1745973042898,-255.71710508,0.000199,2]
[359389573,1745973042911,-153.27144483,0.0002,2]
[359389574,1745973042952,-284.06494092,0.0002,2]
[359389575,1745973042964,-149085.70385386,0.0002,2]
[359389576,1745973042976,-84173.56792504,0.0002,2]
[359389577,1745973043019,-1300.0,0.0002,2]
[359389578,1745973043030,-712.1015016,0.0002,2]
[359389579,1745973043041,-3774.07991411,0.0002,2]
[359389580,1745973043054,-87806.37814587,0.0002,2]
[359389581,1745973043065,-649.32987711,0.0002,2]
[359389582,1745973043172,-689.176566,0.0002,2]
[359389583,1745973043235,-14750.0,0.0002,2]
[359389610,1745973045838,-28236.95629324,0.0002,2]
[359389633,1745973063330,202.30039854,0.00027397,60]
[359389634,1745973099538,250.0,0.00017,2]
[359389635,1745973100610,300.0,0.00019,2]
[359389636,1745973104120,229.0,0.00019311,2]
[359389637,1745973172740,-200.0,0.00019346,2]
[359389638,1745973172761,-84.76037261,0.00019346,2]
[359389639,1745973179052,-158.36508478,0.00019346,2]
[359389640,1745973184355,-300.0,0.00019345,2]
[359389641,1745973184378,-291.4810557,0.00019346,2]
[359389642,1745973191473,-250.9395692,0.00019346,2]
[359389644,1745973197049,-326.289,0.00019346,2]
[359389645,1745973245320,444.99676438,0.00018921,2]
[359389646,1745973245343,1282.61323562,0.00018921,2]
[359389647,1745973373185,250.0,0.00019154,2]
[359389648,1745973433773,310.02,0.00018991,2]
[359389649,1745973557685,250.0,0.00018982,7]
[359389650,1745973569451,223.73926644,0.0003,30]
[359389651,1745973647809,157.36676438,0.00019253,2]
[359389652,1745973647833,31.32323562,0.00019253,2]
[359389653,1745973664307,200.0,0.0003,30]
[359389654,1745973721587,1968.67676438,0.00018998,2]
[359389655,1745973721615,21931.32323562,0.00018998,2]
[359389656,1745973766746,843.0,0.0003,30]
[359389657,1745973866485,1000.0,0.0003,30]
[359389658,1745973907025,-150.0,0.00019315,2]
[359389659,1745973918980,3333.4617,0.0002,3]
[359389660,1745973970609,-151.13215,0.00019344,2]
[359389661,1745973972407,2000.0,0.0003,30]
[359389666,1745974095996,157.84,0.00026601,120]
[359389667,1745974096202,157.84,0.00029019,120]
[359389668,1745974134952,1000.0,0.0003,30]
[359389669,1745974150308,1000.0,0.00019228,2]
[359389670,1745974154994,200.0,0.00019228,2]
[359389672,1745974178441,31583.58,0.00019225,2]
[359389676,1745974191612,217.0,0.00030137,120]
[359389677,1745974202657,2000.0,0.0002,4]
[359389681,1745974207581,-190.55785929,0.00019321,2]
[359389683,1745974211939,-87.73701867,0.00019321,2]
[359389684,1745974231943,-200.0,0.00019344,2]
[359389685,1745974231954,-153.27516011,0.00019344,2]
[359389686,1745974231964,-250.0,0.00019345,2]
[359389687,1745974231975,-35.26988676,0.00019345,2]
[359389688,1745974231988,-1164.73011324,0.00019345,2]
[359389689,1745974231997,-1693.7,0.00019346,2]
[359389690,1745974232005,-200.0,0.00019346,2]
[359389691,1745974232015,-157.84,0.00019346,2]
[359389692,1745974232026,-300.0,0.00019366,2]
[359389693,1745974232037,-2702.63,0.00019367,2]
[359389694,1745974232047,-1500.0,0.0001939,2]
[359389695,1745974232057,-150.0,0.00019395,2]
[359389696,1745974232071,-187.03,0.00019515,2]
[359389697,1745974232082,-178.64,0.00019654,2]
[359389698,1745974232093,-577.2285692,0.00019748,2]
[359389699,1745974232102,-540.20131757,0.0001989,2]
[359389700,1745974232159,-13584.33981643,0.0001989,2]
[359389713,1745974232282,-306.1402,0.000199,2]
[359389715,1745974232338,-744.3192,0.000199,2]
[359389717,1745974232348,-241.8064,0.000199,2]
[359389719,1745974232357,-322.3556,0.000199,2]
[359389721,1745974232368,-739.911,0.000199,2]
[359389723,1745974232377,-547.2211,0.000199,2]
[359389725,1745974232386,-179.89728911,0.000199,2]
[359389727,1745974232396,-862.64634444,0.000199,2]
[359389729,1745974232405,-1249.68969784,0.000199,2]
[359389731,1745974232414,-429.24967668,0.000199,2]
[359389733,1745974232423,-528.31042538,0.000199,2]
[359389735,1745974232433,-9443.96392083,0.00019901,2]
[359389737,1745974232442,-2350.6,0.00019902,2]
[359389739,1745974232451,-1147.06,0.00019902,2]
[359389741,1745974232460,-9999.99,0.00019902,2]
[359389744,1745974232470,-9999.99,0.00019902,2]
[359389747,1745974232479,-486.36,0.00019902,2]
[359389749,1745974232488,-1380.91,0.00019902,2]
[359389751,1745974232498,-150.99,0.00019902,2]
[359389753,1745974232507,-999.99,0.00019902,2]
[359389755,1745974232516,-388.97,0.00019902,2]
[359389757,1745974232526,-10897.45108419,0.00019902,2]
[359389759,1745974232538,-10577.52891581,0.00019902,2]
[359389761,1745974232558,-9999.99,0.00019902,2]
[359389763,1745974232570,-1403.9,0.00019904,2]
[359389764,1745974232579,-9153.76,0.00019904,2]
[359389767,1745974232589,-540.61,0.00019904,2]
[359389769,1745974232599,-150.99,0.00019904,2]
[359389770,1745974232609,-9999.99,0.00019904,2]
[359389772,1745974232621,-1373.47112208,0.00019952,2]
[359389833,1745974237994,-298.26570263,0.00019901,2]
[359389834,1745974238004,-1481.69438937,0.00019952,2]
[359389835,1745974238015,-633.11392487,0.00019952,2]
[359389836,1745974238025,-207.4,0.00019953,2]
[359389837,1745974238035,-209.30580513,0.00019973,2]
[359389838,1745974238048,-302.60915389,0.00019973,2]
[359389839,1745974238058,-500.0,0.00019973,2]
[359389840,1745974238068,-500.0,0.00019973,2]
[359389841,1745974238077,-478.39084621,0.00019973,2]
[359389842,1745974238088,-21.60915379,0.00019973,2]
[359389843,1745974238098,-509.78385307,0.00019973,2]
[359389844,1745974238107,-207.20699319,0.00019999,2]
[359389845,1745974238118,-292.79300681,0.00019999,2]
[359389846,1745974238128,-300.0,0.00019999,2]
[359389847,1745974238137,-300.0,0.00019999,2]
[359389848,1745974238148,-277.17681675,0.00019999,2]
[359389849,1745974238159,-725.35698325,0.00019999,2]
[359389850,1745974238168,-199.46872262,0.00019999,2]
[359389851,1745974238178,-177.36590547,0.0002,2]
[359389852,1745974238187,-50014.52855126,0.0002,2]
[359389853,1745974238196,-2732508.96359145,0.0002,2]
[359389854,1745974238206,-1933458.1135681,0.0002,2]
[359389855,1745974238306,-3562.39999995,0.0002,2]
[359389888,1745974240245,-20111.61798189,0.0002,2]
[359389889,1745974240303,-4601.15,0.0002,2]
[359389890,1745974240456,-453.8784,0.0002,2]
[359389891,1745974240586,-50.02766358,0.0002,2]
[359389892,1745974240656,-3093.4459002,0.0002,2]
[359389893,1745974240667,-292.64596261,0.0002,2]
[359389895,1745974240678,-53202.29935351,0.0002,2]
[359389915,1745974243629,-207.85847752,0.000199,2]
[359389916,1745974243640,-354.74391818,0.0002,2]
[359389917,1745974243654,-942.316296,0.0002,2]
[359389922,1745974246086,-1378.91265611,0.0002,2]
[359389928,1745974482877,212.3091461,0.0003,30]
[359389929,1745974494295,200.0,0.0003,30]
[359389930,1745974548583,1000.0,0.0003,30]
[359389931,1745974557878,300.0,0.0003,30]
[359389932,1745974561968,250.0,0.00019346,7]
[359389934,1745974912862,250.0,0.00017,2]
[359389935,1745974914018,300.0,0.00019,2]
[359389937,1745975048453,1000.0,0.00030136,120]
[359389938,1745975161630,500.0,0.00030137,120]
[359389939,1745975205261,675.0,0.00030137,120]
[359389940,1745975233996,500.0,0.00030137,120]
[359389966,1745975384762,200.0,0.00029836,120]
[359389967,1745975398721,-390.56822429,0.00019319,2]
[359389968,1745975401876,2000.0,0.0002,4]
[359389969,1745975402786,-329.76386651,0.00019319,2]
[359389970,1745975405230,-212.81803252,0.00019319,2]
[359389971,1745975407927,-212.82932349,0.00019319,2]
[359389972,1745975411221,-161.33106,0.00019319,2]
[359389973,1745975418214,-11.80949319,0.00019319,2]
[359389974,1745975418236,-144.79050681,0.00019332,2]
[359389975,1745975423738,-55.20949319,0.00019332,2]
[359389976,1745975423762,-152.37964923,0.00019332,2]
[359389977,1745975425323,223.47,0.00030137,120]
[359389978,1745975431462,-97.62035077,0.00019332,2]
[359389979,1745975432321,-268.0,0.00019344,2]
[359389980,1745975432331,-288.17,0.00019344,2]
[359389981,1745975432342,-11.83,0.00019344,2]
[359389982,1745975432351,-1200.0,0.00019344,2]
[359389983,1745975432361,-285.0,0.00019344,2]
[359389984,1745975432371,-84703.74890254,0.00019345,2]
[359389985,1745975432387,-277.8417361,0.00019345,2]
[359390008,1745975438172,-21109.49450336,0.00019345,2]
[359390010,1745975438183,-500.0,0.00019346,2]
[359390012,1745975438194,-91889.53633403,0.00019346,2]
[359390014,1745975438204,-1500.0,0.00019404,2]
[359390016,1745975438213,-1000.0,0.00019648,2]
[359390017,1745975438222,-150.0,0.00019669,2]
[359390018,1745975438231,-1000.0,0.00019888,2]
[359390019,1745975438241,-1008.7973,0.00019888,2]
[359390020,1745975438250,-2500.0,0.00019888,2]
[359390021,1745975438259,-2082.4709,0.00019888,2]
[359390022,1745975438268,-2453.5286,0.00019888,2]
[359390023,1745975438278,-290.9881424,0.0001989,2]
[359390024,1745975438287,-178.64,0.00019894,2]
[359390025,1745975438296,-307.25331622,0.000199,2]
[359390026,1745975438305,-739.41115242,0.000199,2]
[359390027,1745975438315,-445.9633375,0.000199,2]
[359390028,1745975438323,-625.95312878,0.00019918,2]
[359390029,1745975438333,-200.0,0.00019951,2]
[359390030,1745975438342,-296.57,0.00019951,2]
[359390031,1745975438351,-9999.99,0.00019951,2]
[359390032,1745975438361,-999.99,0.00019951,2]
[359390033,1745975438370,-9999.99,0.00019951,2]
[359390034,1745975438379,-9632.89,0.00019951,2]
[359390035,1745975438387,-495.36597129,0.00019973,2]
[359390036,1745975438396,-500.0,0.00019973,2]
[359390037,1745975438406,-150.99,0.00019987,2]
[359390038,1745975438415,-150.99,0.00019987,2]
[359390039,1745975438425,-3185.69,0.00019987,2]
[359390040,1745975438434,-199.46872262,0.00019987,2]
[359390041,1745975438444,-185.71713771,0.00019987,2]
[359390043,1745975438454,-212206.6843663,0.00019988,2]
[359390045,1745975438464,-1000.0,0.0002,2]
[359390047,1745975438477,-1505.59964944,0.0002,2]
[359390049,1745975438485,-2400088.90495802,0.0002,2]
[359390051,1745975438495,-805.99190821,0.0002,2]
[359390053,1745975438505,-151.0,0.0002,2]
[359390054,1745975438515,-23900.0,0.00020029,2]
[359390056,1745975438525,-258.28,0.00020117,2]
[359390058,1745975438535,-1751.96,0.00020119,2]
[359390060,1745975438545,-6722.5,0.00020145,2]
[359390062,1745975438555,-19999.99,0.00020145,2]
[359390064,1745975438564,-28684.48,0.00020145,2]
[359390066,1745975438574,-20706.94,0.00020548,2]
[359390068,1745975438583,-500.0,0.00020575,2]
[359390070,1745975438592,-500.0,0.00020603,2]
[359390072,1745975438602,-1668.09,0.00020723,2]
[359390074,1745975438611,-445.96333745,0.00020844,2]
[359390076,1745975438621,-350.0,0.00021,2]
[359390078,1745975438630,-152.51,0.00021008,2]
[359390080,1745975438639,-420.0,0.00021077,2]
[359390082,1745975438648,-1680.0,0.00021179,2]
[359390084,1745975438659,-250.0,0.00021187,2]
[359390086,1745975438668,-250.0,0.00021241,2]
[359390088,1745975438677,-200.0,0.00021251,2]
[359390090,1745975438687,-250.0,0.00021251,2]
[359390091,1745975438696,-200.0,0.00021278,2]
[359390093,1745975438705,-200.0,0.00021279,2]
[359390096,1745975438715,-250.0,0.00021279,2]
[359390097,1745975438724,-165.4,0.00021571,2]
[359390099,1745975438733,-271.87,0.00021644,2]
[359390101,1745975438742,-728.13,0.00021644,2]
[359390103,1745975438751,-7312.75691596,0.000217,2]
[359390105,1745975438761,-157.84,0.00021765,2]
[359390107,1745975438770,-445.96333745,0.00021787,2]
[359390109,1745975438779,-5053.54823058,0.000218,2]
[359390111,1745975438788,-503.0,0.00021863,2]
[359390113,1745975438797,-150.0,0.00021917,2]
[359390115,1745975438807,-290.98814235,0.00022031,2]
[359390117,1745975438817,-1000.0,0.00022104,2]
[359390119,1745975438826,-152.51,0.00022175,2]
[359390121,1745975438835,-1751.96,0.00022383,2]
[359390123,1745975438845,-739.41115237,0.00022397,2]
[359390125,1745975438855,-34255.99663988,0.000225,2]
[359390128,1745975438864,-1852.92450949,0.00022553,2]
[359390129,1745975438873,-1852.92450948,0.00022553,2]
[359390132,1745975438883,-505.27130888,0.0002271,2]
[359390134,1745975438893,-445.96333745,0.00022731,2]
[359390152,1745975439051,-4050.037,0.00022894,2]
[359390154,1745975439064,-258.529,0.00022894,2]
[359390156,1745975439073,-6743.0,0.00022894,2]
[359390158,1745975439082,-880.254,0.00022895,2]
[359390160,1745975439091,-207.4,0.00022905,2]
[359390162,1745975439101,-587.0,0.00022966,2]
[359390164,1745975439110,-2000.0,0.00023,4]
[359390168,1745975439135,-1502.8689114,0.00023,2]
[359390170,1745975439144,-400.0,0.00023,2]
[359390172,1745975439154,-1000.0,0.000231,2]
[359390174,1745975439163,-1000.0,0.000231,2]
[359390176,1745975439172,-1257.0,0.00023174,2]
[359390178,1745975439183,-2351.0,0.00023189,2]
[359390180,1745975439193,-33088.59027685,0.000232,2]
[359390182,1745975439203,-165.4,0.00023216,2]
[359390184,1745975439212,-150.0,0.00023287,2]
[359390186,1745975439221,-1000.0,0.000233,2]
[359390188,1745975439231,-152.51,0.00023342,2]
[359390190,1745975439240,-3206.29935344,0.00023573,2]
[359390192,1745975439250,-445.96333745,0.00023675,2]
[359390194,1745975439260,-1000.0,0.000237,2]
[359390196,1745975439270,-150.378,0.000237,2]
[359390197,1745975439279,-156.88,0.000237,2]
[359390199,1745975439287,-922.0,0.000237,2]
[359390202,1745975439297,-1338.0,0.000237,2]
[359390203,1745975439306,-292.183,0.000237,2]
[359390205,1745975439316,-2067.0,0.000237,2]
[359390207,1745975439327,-549.0,0.000237,2]
[359390209,1745975439336,-913.0,0.000237,2]
[359390211,1745975439345,-580.0,0.000237,2]
[359390213,1745975439355,-500.0,0.000238,2]
[359390215,1745975439364,-500.0,0.000238,2]
[359390217,1745975439374,-605.07222308,0.000238,2]
[359390219,1745975439383,-500.0,0.000238,2]
[359390221,1745975439392,-171.13,0.00023836,2]
[359390223,1745975439402,-1000.0,0.000241,2]
[359390225,1745975439413,-1459.45220121,0.000241,5]
[359390227,1745975439423,-1459.45220111,0.000241,5]
[359390229,1745975439432,-1459.45220111,0.000241,5]
[359390231,1745975439441,-290.98814235,0.00024173,2]
[359390233,1745975439450,-157.84,0.00024183,2]
[359390235,1745975439459,-1459.45220111,0.0002421,5]
[359390237,1745975439468,-307.25331617,0.00024231,2]
[359390239,1745975439481,-215.0738,0.00024274,2]
[359390241,1745975439490,-451.29533622,0.00024302,2]
[359390242,1745975439499,-152.51,0.00024509,2]
[359390244,1745975439508,-1000.0,0.0002456,2]
[359390246,1745975439517,-445.96333745,0.00024618,2]
[359390248,1745975439527,-1110.63071456,0.0002463,2]
[359390250,1745975439537,-500.0,0.00024644,2]
[359390252,1745975439547,-500.0,0.00024644,2]
[359390254,1745975439557,-205.86243158,0.00024644,2]
[359390255,1745975439567,-301.0,0.00024644,2]
[359390256,1745975439576,-502.16753865,0.00024644,2]
[359390257,1745975439586,-1751.96,0.00024647,2]
[359390258,1745975439595,-150.0,0.00024657,2]
[359390259,1745975439605,-2961.499,0.00024657,7]
[359390260,1745975439616,-179.871,0.00024657,7]
[359390261,1745975439625,-215.1121207,0.00024699,2]
[359390262,1745975439635,-500.40449918,0.000247,2]
[359390263,1745975439644,-500.0,0.000247,2]
[359390264,1745975439655,-500.59242922,0.000247,2]
[359390265,1745975439664,-500.0,0.000247,2]
[359390266,1745975439675,-500.0,0.000247,2]
[359390267,1745975439684,-150.23279255,0.000247,2]
[359390268,1745975439694,-504.58863235,0.000247,2]
[359390269,1745975439703,-500.0,0.000247,2]
[359390270,1745975439713,-500.0,0.00024709,2]
[359390271,1745975439722,-519.07248409,0.00024709,2]
[359390272,1745975439731,-1110.63071456,0.00024712,2]
[359390273,1745975439741,-245.82421062,0.00024773,2]
[359390274,1745975439750,-500.0,0.00024773,2]
[359390275,1745975439760,-277.38103397,0.00024773,2]
[359390276,1745975439769,-500.0,0.00024773,2]
[359390277,1745975439779,-235366.597663,0.000248,3]
[359390278,1745975439788,-1110.63071456,0.00024822,2]
[359390279,1745975439797,-500.0,0.00024873,2]
[359390280,1745975439807,-739.41115237,0.00024893,2]
[359390281,1745975439816,-151.0,0.000249,7]
[359390282,1745975439826,-151.0,0.000249,7]
[359390283,1745975439836,-151.0,0.000249,7]
[359390284,1745975439846,-168013.953806,0.000249,3]
[359390285,1745975439858,-1110.63071456,0.00024932,2]
[359390286,1745975439869,-1524.1827714,0.00024949,2]
[359390287,1745975439878,-960.8978341,0.00024949,2]
[359390288,1745975439887,-3021.7588795,0.00024966,2]
[359390289,1745975439897,-73285.8558092,0.00024983,2]
[359390291,1745975439906,-367.92193857,0.00025,2]